fUST/lending_fUST_20250824
["ID","MTS","AMOUNT","RATE_DAILY","PERIOD"]
[381088948,1756026639183,-1355.96332575,0.00039573,2]
[381088949,1756026639192,-500.0,0.00039673,5]
[381088950,1756026639201,-502.95907648,0.00039673,5]
[381088951,1756026639210,-207.4965436,0.00039673,5]
[381088952,1756026639222,-500.0,0.00039673,5]
[381088953,1756026639231,-500.0,0.00039673,5]
[381088954,1756026639240,-501.74330652,0.00039673,5]
[381088955,1756026639250,-500.0,0.00039687,15]
[381088956,1756026639259,-163.07484738,0.00039687,15]
[381088957,1756026639269,-41122.2387576,0.00039688,3]
[381088958,1756026639278,-215.99145658,0.00039688,3]
[381088959,1756026639288,-160.0,0.00039688,3]
[381088960,1756026639298,-370000.0,0.00039698,2]
[381088961,1756026639309,-151.87,0.000397,7]
[381088962,1756026639318,-387.28,0.000397,14]
[381088963,1756026639328,-1426.02,0.00039726,120]
[381088964,1756026639337,-500.0,0.00039773,5]
[381088965,1756026639346,-500.0,0.00039773,2]
[381088966,1756026639355,-7338.18,0.000398,14]
[381088967,1756026639364,-158.0,0.000398,45]
[381088968,1756026639375,-158.0,0.000398,60]
[381088969,1756026639384,-1355.96332572,0.00039881,2]
[381088970,1756026639394,-199.0,0.00039889,120]
[381088971,1756026639403,-480.0,0.00039989,120]
[381088972,1756026639412,-158.0,0.0004,30]
[381088973,1756026639421,-500.0,0.0004,15]
[381088974,1756026639432,-161.0055628,0.00040082,30]
[381088975,1756026639441,-171.6983317,0.00040082,30]
[381088976,1756026639450,-153.0,0.00040082,30]
[381088977,1756026639459,-1355.96332572,0.00040188,2]
[381088978,1756026639469,-489.84585456,0.00040193,120]
[381088979,1756026639478,-14999.999999,0.000402,120]
[381088980,1756026639487,-500.71858137,0.00040221,5]
[381088981,1756026639497,-658.48991797,0.00040321,5]
[381088982,1756026639507,-500.0,0.00040321,2]
[381088983,1756026639516,-5140.2798447,0.00040486,3]
[381088984,1756026639526,-1355.96332572,0.00040496,2]
[381088985,1756026639535,-417.24418746,0.00040619,36]
[381088986,1756026639544,-299.0,0.00040631,15]
[381088987,1756026639553,-2574.0,0.00040631,15]
[381088988,1756026639562,-1355.96332572,0.00040803,2]
[381088989,1756026639572,-40453.54217992,0.00040803,60]
[381088990,1756026639581,-199.0,0.00040804,30]
[381088991,1756026639590,-25701.3992235,0.00040893,3]
[381088992,1756026639600,-151.0,0.00040903,30]
[381088993,1756026639609,-298.994804,0.00040903,30]
[381088994,1756026639619,-151.0,0.00040903,14]
[381088995,1756026639628,-151.0,0.00040903,30]
[381088996,1756026639638,-151.0,0.00040903,30]
[381088997,1756026639647,-151.0,0.00040903,30]
[381088998,1756026639656,-151.0,0.00040903,30]
[381088999,1756026639666,-151.0,0.00040903,30]
[381089000,1756026639675,-151.0,0.00040903,30]
[381089001,1756026639684,-151.0,0.00040903,30]
[381089003,1756026639693,-151.0,0.00040903,30]
[381089004,1756026639702,-151.0,0.00040903,30]
[381089005,1756026639711,-263.146027,0.00040903,30]
[381089006,1756026639721,-263.146027,0.00040903,30]
[381089007,1756026639731,-263.146027,0.00040903,30]
[381089008,1756026639740,-263.146027,0.00040903,30]
[381089009,1756026639749,-151.0,0.00040903,30]
[381089010,1756026639758,-151.0,0.00040903,30]
[381089011,1756026639767,-151.0,0.00040903,30]
[381089012,1756026639777,-214.713538,0.00040903,30]
[381089013,1756026639786,-178.891222,0.00040903,30]
[381089015,1756026639795,-151.0,0.00040903,30]
[381089017,1756026639804,-214.713538,0.00040903,30]
[381089018,1756026639813,-178.891222,0.00040903,30]
[381089019,1756026639823,-151.0,0.00040903,30]
[381089020,1756026639832,-178.891222,0.00040903,30]
[381089021,1756026639842,-214.713538,0.00040903,30]
[381089023,1756026639852,-178.891222,0.00040903,30]
[381089024,1756026639861,-214.713538,0.00040903,30]
[381089025,1756026639871,-174.81553,0.00040903,30]
[381089026,1756026639881,-174.81553,0.00040903,30]
[381089027,1756026639891,-174.81553,0.00040903,30]
[381089029,1756026639900,-174.81553,0.00040903,30]
[381089031,1756026639909,-151.0,0.00040903,30]
[381089033,1756026639918,-351.043672,0.00040903,30]
[381089035,1756026639929,-351.043672,0.00040903,30]
[381089036,1756026639939,-151.0,0.00040903,30]
[381089037,1756026639949,-351.043672,0.00040903,30]
[381089039,1756026639958,-151.0,0.00040903,30]
[381089041,1756026639967,-351.043672,0.00040903,30]
[381089042,1756026639976,-151.0,0.00040903,30]
[381089043,1756026639986,-174.831952,0.00040903,30]
[381089044,1756026639995,-151.0,0.00040903,30]
[381089045,1756026640013,-160.0,0.00040903,30]
[381089046,1756026640024,-151.0,0.00040903,30]
[381089047,1756026640034,-151.0,0.00040903,30]
[381089048,1756026640044,-151.0,0.00040903,15]
[381089049,1756026640053,-151.0,0.00040903,30]
[381089050,1756026640063,-151.0,0.00040903,30]
[381089051,1756026640072,-151.0,0.00040903,30]
[381089052,1756026640082,-1888.0,0.00040903,30]
[381089053,1756026640091,-151.0,0.00040903,30]
[381089054,1756026640100,-151.0,0.00040903,30]
[381089055,1756026640110,-151.0,0.00040903,30]
[381089056,1756026640119,-1957.856,0.00040903,30]
[381089057,1756026640129,-151.0,0.00040903,30]
[381089058,1756026640138,-151.0,0.00040903,30]
[381089059,1756026640148,-151.0,0.00040903,30]
[381089060,1756026640157,-2030.296672,0.00040903,30]
[381089061,1756026640166,-151.0,0.00040903,30]
[381089062,1756026640176,-151.0,0.00040903,30]
[381089063,1756026640186,-156.587,0.00040903,30]
[381089064,1756026640195,-151.0,0.00040903,30]
[381089065,1756026640204,-2105.41764886,0.00040903,30]
[381089066,1756026640213,-151.0,0.00040903,30]
[381089067,1756026640223,-291.24052599,0.00040903,30]
[381089068,1756026640232,-162.380719,0.00040903,30]
[381089069,1756026640242,-151.0,0.00040903,30]
[381089070,1756026640251,-2183.31810187,0.00040903,30]
[381089071,1756026640260,-300.0,0.00040903,30]
[381089072,1756026640270,-16000.0,0.00040903,30]
[381089073,1756026640279,-250.0,0.00040903,30]
[381089074,1756026640288,-151.0,0.00040903,30]
[381089075,1756026640298,-2264.10087164,0.00040903,30]
[381089076,1756026640311,-16592.0,0.00040903,30]
[381089077,1756026640320,-168.3888056,0.00040903,30]
[381089078,1756026640329,-300.0,0.00040903,30]
[381089079,1756026640338,-250.0,0.00040903,30]
[381089080,1756026640347,-151.0,0.00040903,30]
[381089081,1756026640358,-151.0,0.00040903,30]
[381089082,1756026640367,-2347.87260389,0.00040903,30]
[381089083,1756026640376,-17205.904,0.00040903,30]
[381089084,1756026640389,-174.61919141,0.00040903,30]
[381089085,1756026640398,-250.0,0.00040903,30]
[381089086,1756026640407,-300.0,0.00040903,30]
[381089087,1756026640417,-2434.74389024,0.00040903,30]
[381089088,1756026640427,-17842.522448,0.00040903,30]
[381089089,1756026640436,-151.0,0.00040903,30]
[381089090,1756026640446,-151.0,0.00040903,30]
[381089091,1756026640455,-250.0,0.00040903,30]
[381089092,1756026640464,-300.0,0.00040903,30]
[381089093,1756026640473,-18502.69577858,0.00040903,30]
[381089094,1756026640483,-181.08010149,0.00040903,30]
[381089095,1756026640492,-151.0,0.00040903,30]
[381089096,1756026640501,-2524.82941417,0.00040903,30]
[381089097,1756026640511,-151.0,0.00040903,30]
[381089098,1756026640521,-300.0,0.00040903,30]
[381089099,1756026640530,-250.0,0.00040903,30]
[381089100,1756026640539,-19187.29552238,0.00040903,30]
[381089101,1756026640548,-151.0,0.00040903,30]
[381089102,1756026640558,-187.78006525,0.00040903,30]
[381089103,1756026640568,-2618.2481025,0.00040903,30]
[381089104,1756026640577,-151.0,0.00040903,30]
[381089105,1756026640587,-19897.22545671,0.00040903,30]
[381089106,1756026640597,-300.0,0.00040903,30]
[381089107,1756026640608,-242.60564905,0.00040903,30]
[381089108,1756026640617,-151.0,0.00040903,30]
[381089109,1756026640626,-2715.12328229,0.00040903,30]
[381089110,1756026640635,-250.0,0.00040903,30]
[381089111,1756026640645,-2815.58284374,0.00040903,30]
[381089112,1756026640655,-250.0,0.00040903,30]
[381089113,1756026640664,-151.0,0.00040903,30]
[381089114,1756026640673,-151.0,0.00040903,30]
[381089115,1756026640683,-300.0,0.00040903,30]
[381089116,1756026640692,-20633.42279861,0.00040903,30]
[381089117,1756026640701,-2919.75940895,0.00040903,30]
[381089118,1756026640710,-250.0,0.00040903,30]
[381089119,1756026640719,-300.0,0.00040903,30]
[381089120,1756026640728,-21396.85944216,0.00040903,30]
[381089121,1756026640738,-151.0,0.00040903,30]
[381089122,1756026640747,-151.0,0.00040903,30]
[381089123,1756026640756,-1877.60920351,0.00040903,30]
[381089124,1756026640773,-250.0,0.00040903,30]
[381089125,1756026640782,-300.0,0.00040903,30]
[381089126,1756026640791,-267.40561569,0.00040903,30]
[381089127,1756026640800,-151.0,0.00040903,30]
[381089128,1756026640811,-22188.54324152,0.00040903,30]
[381089129,1756026640820,-250.0,0.00040903,30]
[381089130,1756026640829,-300.0,0.00040903,30]
[381089131,1756026640839,-151.0,0.00040903,30]
[381089132,1756026640849,-151.0,0.00040903,30]
[381089133,1756026640859,-250.0,0.00040903,30]
[381089134,1756026640868,-300.0,0.00040903,30]
[381089135,1756026640878,-151.0,0.00040903,30]
[381089136,1756026640888,-21580.95511853,0.00040903,30]
[381089137,1756026640897,-151.0,0.00040903,30]
[381089138,1756026640907,-250.0,0.00040903,30]
[381089139,1756026640916,-300.0,0.00040903,30]
[381089140,1756026640926,-151.0,0.00040903,30]
[381089141,1756026640935,-250.0,0.00040903,30]
[381089142,1756026640945,-151.0,0.00040903,30]
[381089143,1756026640954,-300.0,0.00040903,30]
[381089144,1756026640963,-200.13064809,0.00040903,30]
[381089145,1756026640972,-356.50235063,0.00040903,30]
[381089146,1756026640982,-151.0,0.00040903,30]
[381089147,1756026640991,-250.0,0.00040903,30]
[381089148,1756026641001,-250.0,0.00040903,30]
[381089149,1756026641010,-151.0,0.00040903,30]
[381089150,1756026641019,-250.0,0.00040903,30]
[381089151,1756026641029,-151.0,0.00040903,30]
[381089152,1756026641038,-275.21884075,0.00040903,30]
[381089153,1756026641047,-151.0,0.00040903,30]
[381089154,1756026641057,-500.0,0.00040903,30]
[381089155,1756026641066,-500.0,0.00040903,30]
[381089156,1756026641075,-500.0,0.00040903,30]
[381089157,1756026641085,-500.0,0.00040903,30]
[381089158,1756026641094,-500.0,0.00040903,30]
[381089159,1756026641103,-500.0,0.00040903,30]
[381089160,1756026641112,-500.0,0.00040903,30]
[381089161,1756026641122,-500.0,0.00040903,30]
[381089162,1756026641131,-500.0,0.00040903,30]
[381089163,1756026641141,-2574.0,0.00040905,15]
[381089164,1756026641151,-168.0,0.00040909,2]
[381089165,1756026641160,-501.03600475,0.00040973,5]
[381089166,1756026641170,-1000.0,0.00041,120]
[381089167,1756026641180,-1426.02,0.00041095,120]
[381089168,1756026641190,-5140.2798447,0.00041169,3]
[381089169,1756026641199,-2574.0,0.00041179,15]
[381089170,1756026641208,-5000.0,0.000412,120]
[381089171,1756026641218,-168.0,0.00041244,2]
[381089172,1756026641227,-480.4621638,0.00041288,30]
[381089173,1756026641236,-2574.0,0.00041453,15]
[381089174,1756026641246,-2574.0,0.00041727,15]
[381089175,1756026641255,-204.060362,0.000418,2]
[381089176,1756026641264,-600.0,0.00041986,60]
[381089177,1756026641274,-7338.18,0.00042,14]
[381089178,1756026641283,-2574.0,0.00042001,15]
[381089179,1756026641292,-1899.95716376,0.00042192,28]
[381089180,1756026641306,-5000.0,0.000422,120]
[381089181,1756026641315,-2574.0,0.00042275,15]
[381089182,1756026641324,-417.24418746,0.00042345,39]
[381089183,1756026641334,-1426.02,0.00042465,120]
[381089184,1756026641343,-684487.0287646,0.000425,10]
[381089185,1756026641352,-600.0,0.00042534,60]
[381089186,1756026641361,-2574.0,0.00042549,15]
[381089187,1756026641371,-387.28,0.000427,14]
[381089188,1756026641382,-2574.0,0.00042823,15]
[381089189,1756026641392,-160.0,0.00042843,2]
[381089190,1756026641401,-160.0,0.00042857,2]
[381089191,1756026641410,-232.37252479,0.00042887,2]
[381089192,1756026641420,-199.0,0.000429,120]
[381089193,1756026641429,-150.0,0.000429,120]
[381089194,1756026641439,-10280.5596894,0.0004299,3]
[381089195,1756026641448,-197.860276,0.0004299,120]
[381089196,1756026641457,-54981.50081309,0.00043,120]
[381089197,1756026641468,-1000.0,0.00043,120]
[381089198,1756026641477,-151.0,0.00043,120]
[381089199,1756026641487,-151.0,0.00043,120]
[381089200,1756026641496,-151.0,0.00043,120]
[381089201,1756026641506,-151.0,0.00043,120]
[381089202,1756026641515,-151.0,0.00043,120]
[381089203,1756026641525,-151.0,0.00043,120]
[381089204,1756026641535,-151.0,0.00043,120]
[381089205,1756026641544,-234.387578,0.00043,14]
[381089206,1756026641554,-151.161939,0.00043,120]
[381089207,1756026641563,-151.0,0.00043,120]
[381089208,1756026641573,-167.485033,0.00043,120]
[381089209,1756026641582,-151.0,0.00043,120]
[381089210,1756026641592,-151.0,0.00043,120]
[381089211,1756026641602,-151.0,0.00043,120]
[381089212,1756026641611,-151.0,0.00043,120]
[381089213,1756026641807,-151.0,0.00043,120]
[381089214,1756026641816,-151.0,0.00043,120]
[381089215,1756026641826,-151.0,0.00043,120]
[381089216,1756026641835,-151.0,0.00043,120]
[381089217,1756026641845,-151.0,0.00043,120]
[381089218,1756026641854,-151.0,0.00043,120]
[381089219,1756026641863,-151.0,0.00043,14]
[381089220,1756026641874,-151.0,0.00043,120]
[381089221,1756026641883,-151.0,0.00043,120]
[381089222,1756026641893,-151.0,0.00043,120]
[381089223,1756026641902,-151.0,0.00043,120]
[381089224,1756026641911,-248.240322,0.00043,120]
[381089225,1756026641921,-151.0,0.00043,120]
[381089226,1756026641930,-263.146027,0.00043,120]
[381089227,1756026641939,-263.146027,0.00043,120]
[381089228,1756026641949,-263.146027,0.00043,120]
[381089229,1756026641959,-263.146027,0.00043,120]
[381089230,1756026641968,-151.0,0.00043,120]
[381089231,1756026641978,-151.0,0.00043,120]
[381089232,1756026641987,-151.0,0.00043,120]
[381089233,1756026641997,-214.713538,0.00043,120]
[381089234,1756026642008,-178.891222,0.00043,120]
[381089235,1756026642017,-151.0,0.00043,120]
[381089236,1756026642027,-214.713538,0.00043,120]
[381089237,1756026642037,-178.891222,0.00043,120]
[381089238,1756026642047,-238.002688,0.00043,120]
[381089239,1756026642056,-178.891222,0.00043,120]
[381089240,1756026642066,-214.713538,0.00043,120]
[381089241,1756026642075,-178.891222,0.00043,120]
[381089242,1756026642085,-214.713538,0.00043,120]
[381089243,1756026642095,-174.81553,0.00043,120]
[381089244,1756026642105,-174.81553,0.00043,120]
[381089245,1756026642114,-174.81553,0.00043,120]
[381089246,1756026642123,-174.81553,0.00043,120]
[381089247,1756026642133,-351.043672,0.00043,120]
[381089248,1756026642143,-351.043672,0.00043,120]
[381089249,1756026642152,-151.0,0.00043,120]
[381089250,1756026642162,-351.043672,0.00043,120]
[381089251,1756026642171,-151.0,0.00043,120]
[381089252,1756026642181,-351.043672,0.00043,120]
[381089253,1756026642191,-151.0,0.00043,120]
[381089254,1756026642201,-152.387388,0.00043,120]
[381089255,1756026642211,-151.0,0.00043,30]
[381089256,1756026642221,-151.0,0.00043,120]
[381089257,1756026642230,-151.0,0.00043,120]
[381089258,1756026642240,-151.0,0.00043,120]
[381089259,1756026642249,-151.0,0.00043,120]
[381089260,1756026642259,-151.0,0.00043,120]
[381089261,1756026642268,-151.0,0.00043,120]
[381089262,1756026642277,-151.0,0.00043,120]
[381089263,1756026642286,-205.813073,0.00043,120]
[381089264,1756026642295,-205.813073,0.00043,120]
[381089265,1756026642308,-205.813073,0.00043,120]
[381089266,1756026642317,-205.813073,0.00043,120]
[381089267,1756026642327,-151.0,0.00043,120]
[381089268,1756026642336,-151.0,0.00043,120]
[381089269,1756026642346,-151.0,0.00043,120]
[381089270,1756026642356,-151.0,0.00043,120]
[381089271,1756026642366,-600.0,0.00043082,60]
[381089272,1756026642375,-2574.0,0.00043097,15]
[381089273,1756026642386,-5000.0,0.000432,120]
[381089274,1756026642396,-600.0,0.000432,2]
[381089275,1756026642406,-2574.0,0.00043371,15]
[381089276,1756026642415,-600.0,0.0004363,60]
[381089277,1756026642424,-2574.0,0.00043645,15]
[381089278,1756026642433,-600.0,0.0004365,2]
[381089279,1756026642443,-1426.02,0.00043835,120]
[381089280,1756026642452,-2574.0,0.00043919,15]
[381089281,1756026642461,-417.24418746,0.00044072,43]
[381089282,1756026642472,-600.0,0.000441,2]
[381089283,1756026642481,-600.0,0.00044178,60]
[381089284,1756026642491,-5140.2798447,0.0004419,3]
[381089285,1756026642500,-2574.0,0.00044193,15]
[381089286,1756026642509,-7338.18,0.000442,14]
[381089287,1756026642519,-2574.0,0.00044467,15]
[381089288,1756026642529,-1133.99420846,0.0004455,2]
[381089289,1756026642539,-2200.0,0.00044681,14]
[381089290,1756026642549,-2574.0,0.00044741,15]
[381089291,1756026642559,-387.28,0.000449,14]
[381089293,1756026642569,-2574.0,0.00045015,15]
[381089294,1756026642578,-151.87,0.000452,7]
[381089295,1756026642587,-1426.02,0.00045205,120]
[381089296,1756026642596,-447.6054018,0.00045205,30]
[381089297,1756026642605,-600.0,0.00045274,60]
[381089298,1756026642614,-2574.0,0.00045289,15]
[381089299,1756026642624,-2574.0,0.00045563,15]
[381089300,1756026642633,-8369.339365,0.00045747,98]
[381089301,1756026642643,-5000.0,0.00045747,100]
[381089302,1756026642653,-5000.0,0.00045747,100]
[381089303,1756026642663,-2574.0,0.00045836,15]
[381089304,1756026642672,-5140.2798447,0.00045989,4]
[381089305,1756026642682,-11428.01260017,0.00045999,120]
[381089306,1756026642692,-1899.95716376,0.00046091,28]
[381089307,1756026642701,-152.0,0.000461,120]
[381089308,1756026642711,-2574.0,0.0004611,15]
[381089309,1756026642721,-10000.0,0.000462,120]
[381089310,1756026642731,-600.0,0.0004637,60]
[381089311,1756026642740,-2574.0,0.00046384,15]
[381089312,1756026642749,-7338.18,0.000465,14]
[381089313,1756026642761,-1426.02,0.00046575,120]
[381089314,1756026642771,-2574.0,0.00046658,15]
[381089316,1756026642781,-2580.88738978,0.00046932,15]
[381089317,1756026642790,-265.46867979,0.00046979,30]
[381089318,1756026642800,-916.0,0.00047,120]
[381089319,1756026642810,-151.0,0.00047,120]
[381089320,1756026642820,-151.0,0.00047,120]
[381089321,1756026642829,-303.309815,0.00047,120]
[381089323,1756026642839,-151.0,0.00047,120]
[381089325,1756026642848,-151.0,0.00047,120]
[381089327,1756026642857,-303.309815,0.00047,120]
[381089329,1756026642867,-151.0,0.00047,120]
[381089331,1756026642877,-303.309815,0.00047,120]
[381089333,1756026642886,-303.309815,0.00047,120]
[381089335,1756026642895,-151.0,0.00047,120]
[381089337,1756026642905,-1995.0,0.00047198,120]
[381089339,1756026642915,-1241.01755926,0.00047207,109]
[381089341,1756026642925,-387.28,0.000473,14]
[381089343,1756026642936,-500.0,0.00047391,30]
[381089345,1756026642945,-201.40133215,0.00047397,30]
[381089347,1756026642955,-600.0,0.00047466,60]
[381089349,1756026642964,-500.0,0.000475,30]
[381089351,1756026642974,-500.0,0.000475,30]
[381089353,1756026642984,-500.0,0.000475,30]
[381089355,1756026642993,-500.0,0.000475,120]
[381089357,1756026643003,-500.0,0.000475,120]
[381089359,1756026643014,-500.0,0.000475,120]
[381089361,1756026643023,-417.24418746,0.00047525,50]
[381089363,1756026643033,-226.799,0.00047525,80]
[381089365,1756026643043,-724.86801381,0.00047938,30]
[381089367,1756026643052,-1426.02,0.00047945,120]
[381089369,1756026643062,-1000.0,0.00047999,120]
[381089371,1756026643071,-1039.54434053,0.00048,120]
[381089373,1756026643081,-15036.46028243,0.00048,120]
[381089414,1756026643416,-50155.91075499,0.00048,120]
[381089518,1756026644506,-94.25358347,0.00026589,2]
[381089519,1756026644517,-78.06092113,0.00026589,2]
[381089520,1756026644526,-199.0,0.00028433,10]
[381089521,1756026644535,-296.43,0.00039663,3]
[381089522,1756026644544,-160.0,0.00039688,3]
[381089523,1756026644555,-592.86,0.00041033,3]
[381089524,1756026644564,-4673.64907887,0.00048,120]
[381089693,1756026646281,-160.0,0.00040893,3]
[381089695,1756026646290,-248.0,0.00048,120]
[381090231,1756026778768,447.79812183,0.000199,2]
[381090232,1756026778825,447.79812169,0.00021627,2]
[381090233,1756026779205,447.79812169,0.00023353,2]
[381090234,1756026944917,416.92644919,0.000199,2]
[381090235,1756026945706,416.9264491,0.00021627,2]
[381090236,1756026945777,416.9264491,0.00023353,2]
[381090237,1756026953813,190.1660225,0.00024444,2]
[381090239,1756027112234,375.23380419,0.000199,2]
[381090240,1756027112744,375.23380419,0.00021627,2]
[381090241,1756027112959,375.23380419,0.00023353,2]
[381090242,1756027126274,446.15369234,0.00025001,2]
[381090243,1756027256729,6960.62047505,0.0002498,2]
[381090244,1756027275196,4144.82062547,0.00025001,2]
[381090245,1756027275218,855.17937453,0.00025001,2]
[381090246,1756027282302,858.14928133,0.000199,2]
[381090247,1756027282724,858.14928127,0.00023353,2]
[381090248,1756027283011,858.14928127,0.00021627,2]
[381090249,1756027290444,5000.0,0.00025001,2]
[381090250,1756027449584,861.8243377,0.000199,2]
[381090251,1756027449684,861.82433767,0.00023353,2]
[381090252,1756027450087,861.82433767,0.00021627,2]
[381090253,1756027619797,875.36330314,0.000199,2]
[381090254,1756027620096,875.36330305,0.00021627,2]
[381090255,1756027620206,875.36330305,0.00023353,2]
[381090257,1756027646128,-884.45961586,0.0002508,2]
[381090258,1756027646153,-875.36330305,0.0002508,2]
[381090259,1756027646175,-671.0,0.00025198,2]
[381090260,1756027646199,-1200.0,0.00025198,2]
[381090261,1756027646220,-160.0,0.00025199,2]
[381090262,1756027646241,-184.274,0.00025199,9]
[381090263,1756027646261,-300.0,0.00025199,2]
[381090264,1756027646282,-300.0,0.00025199,2]
[381090265,1756027646303,-300.0,0.00025199,2]
[381090266,1756027646323,-4939.85009046,0.000252,2]
[381090268,1756027715096,6358.80985932,0.00017,2]
[381090269,1756027715119,20000.0,0.00017,2]
[381090270,1756027715143,46.30942161,0.00017,2]
[381090271,1756027717621,10430.9648231,0.00025,2]
[381090273,1756027727007,9522.72575529,0.00019063,2]
[381090274,1756027727030,20000.0,0.00019063,2]
[381090275,1756027727051,19574.90779797,0.00019063,2]
[381090276,1756027731385,425.09220203,0.00025001,2]
[381090277,1756027731409,4574.90779797,0.00025001,2]
[381090278,1756027746979,5000.0,0.00025001,2]
[381090279,1756027754214,-300.0,0.00025199,2]
[381090280,1756027754234,-1768.12643575,0.000252,2]
[381090281,1756027764388,5000.0,0.00025001,2]
[381090282,1756027780202,5000.0,0.00025001,2]
[381090283,1756027788910,425.09220203,0.000199,2]
[381090284,1756027788935,799.93577953,0.000199,2]
[381090285,1756027789014,1225.02798136,0.00021627,2]
[381090286,1756027789553,1225.02798136,0.00023353,2]
[381090287,1756027796039,5000.0,0.00025001,2]
[381090288,1756027811408,5000.0,0.00025001,2]
[381090289,1756027826720,1216.62802112,0.00025001,2]
[381090296,1756027832397,-255.57243791,0.0002508,2]
[381090297,1756027832409,-969.45554345,0.0002508,2]
[381090298,1756027832418,-14.5056685,0.000251,2]
[381090299,1756027832429,-141.69320056,0.000251,2]
[381090300,1756027832439,-300.0,0.00025199,2]
[381090301,1756027832448,-300.0,0.00025199,2]
[381090302,1756027832458,-300.0,0.00025199,2]
[381090303,1756027832468,-1200.0,0.00025199,2]
[381090304,1756027832477,-2318.88963,0.000252,2]
[381090305,1756027832489,-8312.46362886,0.000252,2]
[381090306,1756027832500,-2741.45986105,0.000252,2]
[381090308,1756027832515,-19729.34660224,0.000252,2]
[381090309,1756027832524,-209.89621954,0.000252,2]
[381090311,1756027832535,-4369.44263711,0.00026,30]
[381090313,1756027832550,-1076.99281836,0.00026,30]
[381090316,1756027832562,-9039.81205594,0.00026,30]
[381090318,1756027832572,-417.15472785,0.00026,30]
[381090319,1756027832582,-170.8106136,0.000266,2]
[381090320,1756027832595,-170.81061359,0.00026673,2]
[381090321,1756027832604,-500.0,0.00026771,2]
[381090322,1756027832615,-500.0,0.00026771,2]
[381090323,1756027832625,-461.85893494,0.00026771,2]
[381090324,1756027832635,-500.0,0.00026771,2]
[381090325,1756027832645,-500.0,0.00026771,2]
[381090326,1756027832654,-469.36694975,0.00026771,2]
[381090327,1756027832663,-500.0,0.00026771,2]
[381090328,1756027832672,-500.0,0.00026771,2]
[381090329,1756027832682,-500.0,0.00026771,2]
[381090330,1756027832691,-230.71876283,0.00026771,2]
[381090331,1756027832707,-159.20307,0.00026771,2]
[381090332,1756027832716,-454.81466707,0.00026771,2]
[381090399,1756027837277,767.60836473,0.00025001,7]
[381090423,1756027838267,-199.0,0.000259,30]
[381090424,1756027838277,-45.18533293,0.00026771,2]
[381090426,1756027838286,-500.0,0.00026771,2]
[381090428,1756027838295,-500.0,0.00026771,2]
[381090430,1756027838304,-500.0,0.00026771,2]
[381090431,1756027838314,-500.0,0.00026771,2]
[381090433,1756027838323,-500.0,0.00026771,2]
[381090435,1756027838333,-500.0,0.00026771,2]
[381090436,1756027838342,-500.0,0.00026771,2]
[381090437,1756027838351,-376.18731067,0.00026771,2]
[381090438,1756027838360,-500.0,0.00026771,2]
[381090439,1756027838370,-500.0,0.00026771,2]
[381090440,1756027838379,-231.41697224,0.00026771,2]
[381090441,1756027838389,-500.0,0.00026771,2]
[381090442,1756027838399,-257.51850333,0.00026771,2]